bitfinex-derivatives/quotes_SOLF0:USTF0_20220106
["timestamp","ask_amount","ask_price","bid_price","bid_amount"]
[1641444569304,4.0,148.42,148.36,4.76646624]
[1641444569503,4.0,148.37,148.36,4.76646624]
[1641444569702,4.892,148.38,148.36,4.76646624]
[1641444569905,8.892,148.38,148.36,4.76646624]
[1641444570108,8.892,148.38,148.33,14.33076176]
[1641444570304,4.0,148.37,148.34,4.76313725]
[1641444570504,4.0,148.36,148.34,4.76313725]
[1641444570905,32.55679,148.38,148.34,4.76313725]
[1641444571205,36.55679,148.38,148.31,14.33076176]
[1641444571407,38.10654088,148.36,148.27,27.66479]
[1641444571904,42.10654088,148.36,148.27,27.66479]
[1641444573006,38.10654088,148.35,148.27,27.66479]
[1641444573208,38.10654088,148.35,148.28,4.0]
[1641444573608,38.10654088,148.35,148.27,27.66479]
[1641444573809,38.10654088,148.37,148.28,4.0]
[1641444574008,38.10654088,148.37,148.27,41.99555176]
[1641444574510,4.0,148.36,148.27,41.99555176]
[1641444574708,4.0,148.36,148.31,27.66479]
[1641444575007,38.10654088,148.37,148.31,27.66479]
[1641444576208,38.10654088,148.36,148.31,27.66479]
[1641444577307,38.10654088,148.37,148.31,27.66479]
[1641444578308,42.10654088,148.38,148.31,27.66479]
[1641444578507,4.0,148.37,148.31,27.66479]
[1641444578707,4.0,148.36,148.31,27.66479]
[1641444579310,4.0,148.32,148.26,14.33076176]
[1641444579607,7.164,148.32,148.26,14.33076176]
[1641444580209,4.0,148.31,148.26,14.33076176]
[1641444580412,4.0,148.31,148.22,14.33076176]
[1641444580610,4.0,148.3,148.22,14.33076176]
[1641444580809,4.0,148.27,148.22,14.33076176]
[1641444581009,6.261,148.27,148.22,14.33076176]
[1641444582010,38.10654088,148.32,148.22,14.33076176]
[1641444582310,4.0,148.31,148.22,14.33076176]
[1641444582710,27.66479,148.3,148.22,14.33076176]
[1641444582913,27.66479,148.3,148.23,14.33076176]
[1641444583109,69.77133088,148.33,148.23,14.33076176]
[1641444583311,4.0,148.32,148.23,14.33076176]
[1641444584113,4.0,148.31,148.23,14.33076176]
[1641444584816,12.30938114,148.32,148.23,14.33076176]
[1641444585520,12.30938114,148.32,148.23,18.33076176]
[1641444585718,12.30938114,148.32,148.24,14.33076176]
[1641444585918,12.30938114,148.32,148.24,18.33076176]
[1641444586118,12.30938114,148.32,148.24,14.33076176]
[1641444586519,16.30938114,148.32,148.24,14.33076176]
[1641444586721,12.30938114,148.32,148.24,14.33076176]
[1641444586921,27.66479,148.32,148.24,14.33076176]
[1641444587922,12.30938114,148.31,148.24,10.662]
[1641444588125,12.30938114,148.31,148.25,4.0]
[1641444588324,12.30938114,148.31,148.26,4.0]
[1641444588523,28.42662202,148.33,148.29,4.0]
[1641444588723,28.42662202,148.33,148.3,4.0]
[1641444588927,28.42662202,148.33,148.31,27.66479]
[1641444589125,17.41995004,148.34,148.31,27.66479]
[1641444589325,17.41995004,148.37,148.31,27.66479]
[1641444589624,17.41995004,148.37,148.29,32.93079]
[1641444590024,17.41995004,148.37,148.31,4.0]
[1641444590228,102.25684778,148.42,148.31,4.0]
[1641444590928,102.25684778,148.42,148.33,4.0]
[1641444591127,102.25684778,148.42,148.32,4.0]
[1641444591329,102.25684778,148.42,148.3,21.06295511]
[1641444591330,27.66479,148.42,148.31,4.0]
[1641444591928,17.41995004,148.43,148.32,4.0]
[1641444592132,17.41995004,148.43,148.36,4.0]
[1641444592330,17.41995004,148.43,148.36,9.856]
[1641444592530,17.41995004,148.43,148.39,4.0]
[1641444592729,17.41995004,148.43,148.38,4.0]
[1641444593130,17.41995004,148.43,148.37,31.66479]
[1641444593331,17.41995004,148.43,148.38,4.0]
[1641444593530,27.66479,148.47,148.38,4.0]
[1641444594131,27.66479,148.47,148.37,27.66479]
[1641444594132,27.66479,148.47,148.39,4.0]
[1641444594340,27.66479,148.47,148.4,4.0]
[1641444594931,27.66479,148.47,148.41,27.66479]
[1641444595133,17.41995004,148.48,148.42,4.0]
[1641444595836,17.41995004,148.52,148.42,4.0]
[1641444596437,17.41995004,148.52,148.45,4.0]
[1641444597036,17.41995004,148.52,148.47,47.66479]
[1641444597238,17.41995004,148.52,148.48,4.0]
[1641444597437,7.19995004,148.52,148.51,4.0]
[1641444597638,57.17210774,148.54,148.51,9.188]
[1641444597838,57.17210774,148.54,148.52,4.0]
[1641444598038,74.5522159,148.6,148.52,4.0]
[1641444598737,74.5522159,148.6,148.51,5.188]
[1641444598939,74.5522159,148.6,148.54,27.66479]
[1641444599137,57.17210774,148.6,148.56,4.0]
[1641444599337,48.17210774,148.62,148.57,4.0]
[1641444599537,48.17210774,148.62,148.57,11.3129785]
[1641444599737,48.17210774,148.62,148.57,4.593]
[1641444600540,4.0,148.65,148.57,4.593]
[1641444600741,4.0,148.65,148.55,4.0]
[1641444600943,27.66479,148.66,148.55,4.0]
[1641444601340,4.0,148.65,148.55,4.0]
[1641444601641,27.66479,148.66,148.54,27.66479]
[1641444601842,27.66479,148.66,148.53,14.33076176]
[1641444601843,4.0,148.59,148.53,14.33076176]
[1641444602045,4.0,148.55,148.53,14.33076176]
[1641444602243,6.138,148.55,148.53,14.33076176]
[1641444602643,6.138,148.55,148.48,14.33076176]
[1641444602942,6.138,148.55,148.49,27.66479]
[1641444603341,4.0,148.59,148.49,27.66479]
[1641444603544,3.41229423,148.54,148.49,27.66479]
[1641444604545,3.41229423,148.59,148.5,1.34530982]
[1641444605946,3.41229423,148.59,148.54,4.0]
[1641444606149,3.41229423,148.59,148.54,9.39]
[1641444606348,3.41229423,148.59,148.54,5.39]
[1641444607048,3.41229423,148.59,148.53,27.66479]
[1641444607251,10.46129423,148.6,148.53,27.66479]
[1641444607448,10.46129423,148.6,148.49,27.66479]
[1641444608249,3.41229423,148.59,148.5,1.34593876]
[1641444608450,3.41229423,148.59,148.5,8.06907981]
[1641444608750,3.41229423,148.59,148.5,1.34593876]
[1641444608948,3.41229423,148.59,148.5,22.43734272]
[1641444609648,7.41229423,148.59,148.5,22.43734272]
[1641444609848,45.4679248,148.59,148.5,1.34593876]
[1641444610048,4.0,148.56,148.5,1.34593876]
[1641444610751,10.291,148.56,148.5,1.34593876]
[1641444610950,3.41229423,148.55,148.5,1.34593876]
[1641444612153,3.41229423,148.55,148.5,8.06885382]
[1641444612354,3.41229423,148.55,148.5,12.06885382]
[1641444612553,9.423e-05,148.55,148.53,4.0]
[1641444612754,38.05563057,148.58,148.54,4.0]
[1641444612957,12.26717309,148.59,148.54,4.0]
[1641444613154,45.59226818,148.63,148.58,27.66479]
[1641444613355,38.05413013,148.61,148.58,33.62279]
[1641444614456,17.36732856,148.64,148.58,33.62279]
[1641444614655,17.36732856,148.68,148.58,33.62279]
[1641444614859,17.36732856,148.68,148.62,4.0]
[1641444615058,17.36732856,148.68,148.64,27.66479]
[1641444615658,17.36732856,148.7,148.64,27.66479]
[1641444615858,17.36732856,148.7,148.64,31.66479]
[1641444616257,17.36732856,148.7,148.66,20.0]
[1641444616461,17.36732856,148.7,148.65,9.396]
[1641444616658,17.36732856,148.7,148.65,5.396]
[1641444616959,27.66479,148.71,148.65,9.396]
[1641444618160,10.7172701,148.8,148.65,9.396]
[1641444618161,17.36732856,148.75,148.67,4.0]
[1641444618360,17.36732856,148.75,148.66,20.0]
[1641444618361,17.36732856,148.75,148.68,4.0]
[1641444618561,17.36732856,148.75,148.72,4.0]
[1641444618761,17.36732856,148.75,148.72,10.92]
[1641444618962,7.36732856,148.75,148.72,10.92]
[1641444619162,7.36732856,148.75,148.73,27.66479]
[1641444619461,39.62924476,148.8,148.73,27.66479]
[1641444620061,39.62924476,148.8,148.75,4.0]
[1641444620261,39.62924476,148.8,148.74,20.0]
[1641444620262,39.62924476,148.8,148.73,31.66479]
[1641444620462,123.12276014,148.82,148.73,31.66479]
[1641444620663,27.66479,148.82,148.76,4.0]
[1641444620865,66.4325,148.86,148.76,5.505]
[1641444621065,4.0,148.86,148.76,5.505]
[1641444621665,4.0,148.85,148.76,5.505]
[1641444621964,4.0,148.85,148.73,41.99555176]
[1641444622162,4.0,148.85,148.73,34.39636922]
[1641444622362,4.0,148.86,148.73,34.39636922]
[1641444622564,4.0,148.86,148.73,41.10890488]
[1641444622764,4.0,148.82,148.73,34.39636922]
[1641444622962,9.489,148.82,148.73,20.06560746]
[1641444623162,5.489,148.82,148.73,20.06560746]
[1641444624162,5.489,148.82,148.7,14.33076176]
[1641444624364,4.0,148.76,148.7,14.33076176]
[1641444624564,4.0,148.74,148.7,14.33076176]
[1641444624762,4.0,148.74,148.69,14.33076176]
[1641444625063,4.0,148.73,148.69,14.33076176]
[1641444625262,33.47679,148.73,148.69,14.33076176]
[1641444625662,5.812,148.73,148.69,14.33076176]
[1641444625864,5.812,148.73,148.63,48.71259626]
[1641444626163,5.812,148.73,148.66,6.71569121]
[1641444626363,57.00663813,148.78,148.66,6.71569121]
[1641444626764,126.19113813,148.79,148.66,6.71569121]
[1641444627163,126.19113813,148.79,148.69,27.66479]
[1641444627365,61.00663813,148.79,148.69,27.66479]
[1641444627767,4.0,148.79,148.69,27.66479]
[1641444628267,4.0,148.78,148.69,27.66479]
[1641444628466,4.0,148.75,148.66,21.04645297]
[1641444628666,4.0,148.76,148.66,21.04645297]
[1641444628867,65.98263813,148.79,148.66,6.71569121]
[1641444629066,61.00663813,148.79,148.66,6.71569121]
[1641444629266,61.00663813,148.79,148.67,27.66479]
[1641444629866,57.00663813,148.79,148.67,27.66479]
[1641444630068,4.0,148.79,148.67,27.66479]
[1641444630667,4.0,148.79,148.69,4.75165463]
[1641444631868,31.66479,148.8,148.69,4.75165463]
[1641444632469,27.66479,148.8,148.69,4.75165463]
[1641444632670,4.0,148.76,148.69,4.75165463]
[1641444632870,9.279,148.76,148.69,4.75165463]
[1641444633070,4.0,148.74,148.69,4.75165463]
[1641444633271,27.66479,148.72,148.69,4.75165463]
[1641444633471,32.92179,148.72,148.69,4.75165463]
[1641444633870,5.257,148.72,148.69,4.75165463]
[1641444634874,27.66479,148.75,148.69,4.75165463]
[1641444635474,12.23467663,148.74,148.68,4.75165463]
[1641444636479,12.23467663,148.74,148.69,4.75165463]
[1641444638379,12.23467663,148.74,148.68,4.75165463]
[1641444639579,4.0,148.77,148.66,27.66479]
[1641444639580,38.01949806,148.76,148.69,4.75165463]
[1641444639982,38.01949806,148.76,148.69,11.19365463]
[1641444640181,38.01949806,148.76,148.7,4.0]
[1641444640581,38.01949806,148.76,148.71,24.0]
[1641444640782,36.01949806,148.76,148.72,6.71298627]
[1641444640982,36.01949806,148.76,148.72,13.94098627]
[1641444641182,12.23467663,148.78,148.72,13.94098627]
[1641444641385,33.56080461,148.83,148.75,32.41644463]
[1641444641583,33.56080461,148.83,148.75,38.87844463]
[1641444641786,29.56080461,148.83,148.75,38.87844463]
[1641444642587,29.56080461,148.83,148.76,24.0]
[1641444642785,29.56080461,148.83,148.76,20.0]
[1641444643385,21.90080461,148.83,148.8,27.66479]
[1641444643585,21.90080461,148.83,148.8,38.32879]
[1641444643793,10.92080461,148.83,148.8,34.32879]
[1641444643985,12.22186903,148.84,148.8,34.32879]
[1641444644385,3.28186903,148.84,148.8,34.32879]
[1641444644687,3.28186903,148.84,148.8,27.66479]
[1641444644888,3.28186903,148.84,148.78,4.75165463]
[1641444645290,4.995,148.85,148.79,4.75165463]
[1641444645488,4.0,148.86,148.79,4.75165463]
[1641444645688,27.66479,148.87,148.79,4.75165463]
[1641444645890,4.0,148.85,148.79,4.75165463]
[1641444646389,4.0,148.85,148.75,55.32958]
[1641444646390,4.0,148.84,148.77,4.75165463]
[1641444646590,4.0,148.83,148.77,4.75165463]
[1641444646791,4.0,148.81,148.77,4.75165463]
[1641444647089,10.129,148.82,148.77,4.75165463]
[1641444647389,27.66479,148.8,148.75,4.75165463]
[1641444647592,31.66479,148.8,148.75,4.75165463]
[1641444648598,27.66479,148.8,148.73,4.75165463]
[1641444648794,61.00663813,148.84,148.73,4.75165463]
[1641444648995,57.00663813,148.84,148.73,9.12165463]
[1641444649394,4.75010877,148.76,148.75,4.75165463]
[1641444650496,4.75010877,148.76,148.73,38.74755096]
[1641444650696,4.75010877,148.76,148.74,24.0]
[1641444650896,129.154,148.85,148.73,57.07831272]
[1641444651096,4.0,148.84,148.73,53.07831272]
[1641444651304,129.154,148.85,148.73,57.07831272]
[1641444651499,66.1066,148.85,148.76,27.66479]
[1641444651698,27.66479,148.87,148.76,34.13279]
[1641444652097,27.66479,148.87,148.76,44.84397419]
[1641444652302,57.00663813,148.89,148.8,20.0]
[1641444652500,57.00663813,148.89,148.8,6.048]
[1641444652997,124.05943813,148.91,148.8,6.048]
[1641444653197,4.0,148.88,148.8,6.048]
[1641444653397,4.0,148.87,148.8,6.048]
[1641444653698,4.0,148.87,148.76,41.99555176]
[1641444654101,3.39255412,148.86,148.81,1.35555425]
[1641444655402,3.39255412,148.87,148.79,1.35555425]
[1641444656203,3.39255412,148.88,148.77,19.68631601]
[1641444656802,3.39255412,148.88,148.8,4.0]
[1641444657001,3.39255412,148.88,148.82,4.0]
[1641444657201,3.39255412,148.88,148.81,4.0]
[1641444657403,3.39255412,148.88,148.82,4.0]
[1641444657603,3.39255412,148.88,148.85,27.66479]
[1641444657803,3.39255412,148.88,148.85,34.46779]
[1641444658006,3.39255412,148.93,148.85,34.46779]
[1641444661810,37.9729965,148.92,148.85,34.46779]
[1641444662211,37.9729965,148.92,148.85,27.66479]
[1641444662611,37.9729965,148.91,148.83,27.66479]
[1641444663912,37.9729965,148.91,148.86,4.0]
[1641444664112,37.9729965,148.91,148.89,4.0]
[1641444664317,24.3129965,148.91,148.9,4.0]
[1641444664512,18.2129965,148.92,148.89,5.348]
[1641444664713,16.23908327,148.95,148.89,5.348]
[1641444664911,16.23908327,148.95,148.9,4.0]
[1641444665112,16.23908327,148.95,148.89,9.348]
[1641444665313,54.0857214,148.97,148.89,9.348]
[1641444665515,49.4457214,148.97,148.89,9.348]
[1641444665712,49.4457214,148.97,148.91,27.66479]
[1641444666112,176.6742214,149.02,148.91,27.66479]
[1641444666513,176.6742214,149.02,148.91,31.66479]
[1641444666714,49.4457214,149.02,148.91,27.66479]
[1641444667116,27.66479,149.03,148.91,27.66479]
[1641444667514,12.1961918,149.01,148.92,6.70398552]
[1641444667915,16.1961918,149.01,148.92,6.70398552]
[1641444668119,12.1961918,149.01,148.91,27.66479]
[1641444668315,17.2071918,149.01,148.91,27.66479]
[1641444668715,4.0,148.99,148.91,14.33076176]
[1641444668915,4.0,148.95,148.91,6.176e-05]
[1641444669117,4.0,148.92,148.91,6.176e-05]
[1641444669315,11.15,148.92,148.91,6.176e-05]
[1641444669516,11.15,148.92,148.83,6.78630943]
[1641444669719,11.15,148.92,148.83,34.45109943]
[1641444670318,7.15,148.92,148.83,41.1593573]
[1641444670721,7.15,148.92,148.83,34.37304787]
[1641444670917,7.15,148.92,148.83,27.66479]
[1641444671323,12.1961918,148.93,148.83,34.37304787]
[1641444671524,4.0,148.9,148.83,34.37304787]
[1641444671723,12.1961918,148.93,148.83,34.37304787]
[1641444671724,12.1961918,148.93,148.84,6.79099313]
[1641444671919,16.1961918,148.93,148.84,6.79099313]
[1641444672326,12.1961918,148.93,148.84,6.79099313]
[1641444672720,12.1961918,148.93,148.83,34.37304787]
[1641444673322,12.1961918,148.93,148.85,6.70713304]
[1641444673519,12.1961918,148.93,148.85,13.14213304]
[1641444675420,12.1961918,148.93,148.85,6.70713304]
[1641444676822,12.1961918,148.93,148.87,6.70623344]
[1641444677623,63.1479,148.99,148.87,6.70623344]
[1641444677624,12.1961918,148.96,148.88,27.66479]
[1641444679224,12.1961918,149.01,148.89,26.78843134]
[1641444679625,27.66479,148.99,148.89,6.78843134]
[1641444680123,4.0,148.98,148.88,27.66479]
[1641444680322,27.66479,148.99,148.88,31.66479]
[1641444680523,27.66479,148.99,148.88,27.66479]
[1641444681124,12.18991511,148.98,148.89,6.78839431]
[1641444682527,12.18991511,148.98,148.93,4.0]
[1641444682727,84.61350998,149.04,148.96,10.70241287]
[1641444682927,84.61350998,149.04,148.96,16.77241287]
[1641444683127,27.66479,149.04,148.96,16.77241287]
[1641444683328,17.68479,149.04,148.97,4.0]
[1641444683632,17.68479,149.04,148.97,20.0]
[1641444683927,56.94871998,149.06,148.98,31.66479]
[1641444684128,27.66479,149.08,148.98,31.66479]
[1641444684528,27.66479,149.08,148.99,4.0]
[1641444684728,27.66479,149.08,149.0,4.0]
[1641444684933,17.25770697,149.09,149.0,20.0]
[1641444685128,17.25770697,149.09,149.0,24.0]
[1641444685329,17.25770697,149.09,149.0,20.0]
[1641444685530,17.25770697,149.09,149.0,24.0]
[1641444685732,37.92956036,149.11,149.05,27.66479]
[1641444685932,37.92956036,149.11,149.05,33.11879]
[1641444686832,37.92956036,149.11,149.05,25.53322814]
[1641444687836,37.92956036,149.1,149.05,29.53322814]
[1641444688033,37.92956036,149.1,149.06,4.0]
[1641444688333,37.92956036,149.1,149.05,29.53322814]
[1641444689135,37.92956036,149.12,149.05,25.53322814]
[1641444689333,37.92956036,149.12,149.05,29.53322814]
[1641444689534,37.92956036,149.12,149.05,25.53322814]
[1641444689734,41.92956036,149.12,149.03,34.36405978]
[1641444689934,42.73056036,149.12,149.03,34.36405978]
[1641444690337,46.73056036,149.12,149.03,34.36405978]
[1641444690534,42.73056036,149.12,149.03,34.36405978]
[1641444690935,4.801,149.12,149.03,34.36405978]
[1641444691339,37.92956036,149.13,149.03,34.36405978]
[1641444691739,37.92956036,149.11,149.03,34.36405978]
[1641444692038,4.0,149.09,149.03,27.66479]
[1641444692238,4.0,149.09,149.0,9.84]
[1641444692440,4.0,149.06,148.96,16.88241287]
[1641444692640,6.941,149.06,148.96,16.88241287]
[1641444693843,69.59435036,149.09,148.97,27.66479]
[1641444694846,69.59435036,149.09,148.97,34.62079]
[1641444695344,4.0,149.06,148.97,34.62079]
[1641444695644,4.0,149.04,148.97,27.66479]
[1641444696145,27.66479,149.05,148.95,78.959]
[1641444696347,37.92956036,149.08,148.96,6.70218826]
[1641444696746,37.92956036,149.07,148.96,10.70218826]
[1641444696946,37.92956036,149.07,148.96,6.70218826]
[1641444697347,37.92956036,149.07,148.96,10.70218826]
[1641444697547,65.59435036,149.09,148.99,6.70106547]
[1641444697747,65.59435036,149.09,148.99,40.97085547]
[1641444697947,37.92956036,149.09,148.99,40.97085547]
[1641444698747,37.92956036,149.09,149.0,4.0]
[1641444698949,37.92956036,149.11,149.0,4.0]
[1641444699148,37.92956036,149.11,149.01,20.0]
[1641444699348,37.92956036,149.11,149.02,10.69949419]
[1641444699549,37.92956036,149.11,149.02,17.11449419]
[1641444699748,37.92956036,149.11,149.05,27.66479]
[1641444699949,37.92956036,149.11,149.05,39.4341623]
[1641444700348,4.0,149.11,149.05,39.4341623]
[1641444700549,4.0,149.11,149.05,11.7693723]
[1641444700751,4.0,149.12,149.05,11.7693723]
[1641444700949,4.0,149.1,149.03,14.22055079]
[1641444701149,37.92956036,149.14,149.03,14.22055079]
[1641444701350,37.92956036,149.13,149.04,30.69882101]
[1641444701551,37.92956036,149.13,149.08,6.69680228]
[1641444701750,37.92956036,149.13,149.08,6.281]
[1641444702651,41.92956036,149.17,149.08,6.281]
[1641444702951,37.92956036,149.17,149.07,14.22055079]
[1641444703151,37.92956036,149.17,149.1,6.69612964]
[1641444703451,37.92956036,149.17,149.1,6.431]
[1641444703851,27.66479,149.15,149.1,6.431]
[1641444704551,27.66479,149.15,149.06,27.66479]
[1641444704752,12.16367868,149.14,149.04,41.88534079]
[1641444704952,4.0,149.1,149.04,14.22055079]
[1641444705156,9.879,149.1,149.04,14.22055079]
[1641444705355,4.0,149.09,149.04,14.22055079]
[1641444705555,9.879,149.1,149.04,5.079e-05]
[1641444705853,9.879,149.1,149.02,5.079e-05]
[1641444705854,27.66479,149.07,149.02,5.079e-05]
[1641444706253,31.04348174,149.09,149.02,5.079e-05]
[1641444706453,31.04348174,149.09,149.02,4.37305079]
[1641444706854,15.54237042,149.08,149.02,4.373]
[1641444707055,15.54237042,149.08,149.02,28.373]
[1641444707255,15.54237042,149.08,149.03,6.69904539]
[1641444707657,15.54237042,149.08,149.03,10.69904539]
[1641444707857,17.23812186,149.12,149.07,24.0]
[1641444708058,7.73812186,149.12,149.08,4.0]
[1641444708455,37.92009261,149.14,149.08,4.0]
[1641444708856,24.94009261,149.14,149.07,35.79145713]
[1641444709058,22.52009261,149.14,149.07,11.79145713]
[1641444709261,57.18871998,149.18,149.07,11.79145713]
[1641444709457,0.24,149.18,149.07,11.79145713]
[1641444709862,0.24,149.18,149.12,27.66479]
[1641444710057,0.24,149.18,149.12,34.52279]
[1641444711459,4.7377169,149.15,149.14,8.7377169]
[1641444711860,0.24,149.18,149.14,4.7377169]
[1641444712061,95.81529,149.23,149.14,4.7377169]
[1641444712259,27.66479,149.23,149.14,8.7377169]
[1641444712857,27.66479,149.23,149.14,4.0]
[1641444713059,27.66479,149.26,149.15,6.69388848]
[1641444713259,27.66479,149.26,149.15,11.91488848]
[1641444713658,27.66479,149.26,149.15,15.91488848]
[1641444714057,4.0,149.25,149.15,11.91488848]
[1641444714259,9.627,149.25,149.13,47.66479]
[1641444715061,5.627,149.25,149.13,47.66479]
[1641444715260,9.627,149.25,149.13,47.66479]
[1641444715460,5.627,149.25,149.13,47.66479]
[1641444715662,27.66479,149.26,149.13,47.66479]
[1641444716061,119.88251998,149.28,149.17,24.0]
[1641444716262,119.88251998,149.28,149.18,4.0]
[1641444716466,119.88251998,149.28,149.18,6.69254451]
[1641444716763,62.9338,149.28,149.18,6.69254451]
[1641444716965,94.07729,149.29,149.18,6.69254451]
[1641444717162,56.94871998,149.3,149.22,6.69052956]
[1641444717364,56.94871998,149.3,149.25,4.0]
[1641444717562,56.94871998,149.32,149.25,4.844]
[1641444717965,56.94871998,149.32,149.26,27.66479]
[1641444718965,56.94871998,149.32,149.24,27.66479]
[1641444719167,4.0,149.28,149.16,26.76749088]
[1641444719367,4.0,149.27,149.16,6.69344043]
[1641444719569,66.1879,149.31,149.16,6.69344043]
[1641444719971,31.66479,149.3,149.18,27.66479]
[1641444720170,4.0,149.29,149.18,27.66479]
[1641444720669,4.0,149.28,149.18,27.66479]
[1641444721068,4.0,149.25,149.18,27.66479]
[1641444721269,4.0,149.28,149.16,6.69344043]
[1641444721471,4.0,149.28,149.16,16.55344043]
[1641444721870,4.0,149.29,149.19,27.66479]
[1641444722072,4.0,149.26,149.19,27.66479]
[1641444722270,9.221,149.26,149.17,27.66479]
[1641444722470,4.0,149.25,149.17,27.66479]
[1641444722669,4.0,149.2,149.16,9.86]
[1641444722870,11.152,149.2,149.16,9.86]
[1641444723170,4.0,149.18,149.16,9.86]
[1641444723376,4.0,149.19,149.13,6.69478476]
[1641444723571,7.152,149.2,149.13,6.69478476]
[1641444723870,7.152,149.2,149.11,48.689278]
[1641444724270,4.0,149.2,149.11,38.869278]
[1641444724672,34.36293796,149.22,149.11,38.869278]
[1641444724872,4.0,149.2,149.11,27.66479]
[1641444725070,4.0,149.21,149.11,27.66479]
[1641444725271,4.0,149.19,149.11,27.66479]
[1641444725476,68.1433,149.23,149.11,27.66479]
[1641444725674,4.0,149.27,149.16,6.69344043]
[1641444725873,56.94871998,149.26,149.19,27.66479]
[1641444726072,4.0,149.24,149.19,32.20879]
[1641444726273,56.94871998,149.26,149.19,4.544]
[1641444726473,60.94871998,149.26,149.19,4.544]
[1641444727074,4.0,149.26,149.19,4.544]
[1641444727275,44.87665709,149.29,149.14,6.69411253]
[1641444727473,4.0,149.25,149.14,6.69411253]
[1641444728074,31.66479,149.25,149.14,6.69411253]
[1641444728274,27.66479,149.25,149.14,6.69411253]
[1641444728673,27.66479,149.25,149.14,13.49621518]
[1641444728873,12.14413377,149.24,149.15,24.0]
[1641444729073,12.14413377,149.24,149.15,31.015]
[1641444729375,12.14413377,149.24,149.17,6.69276846]
[1641444729776,37.88833453,149.27,149.17,6.69276846]
[1641444729974,37.88833453,149.27,149.19,27.66479]
[1641444730175,37.88833453,149.27,149.19,32.27979]
[1641444730775,50.0324683,149.28,149.19,32.27979]
[1641444731576,50.0324683,149.28,149.2,6.69142494]
[1641444731979,12.14413377,149.29,149.2,13.49332981]
[1641444732377,12.14413377,149.29,149.21,24.0]
[1641444732578,12.14413377,149.29,149.26,6.68873951]
[1641444732876,12.14413377,149.29,149.24,6.68985818]
[1641444733978,12.14413377,149.34,149.27,27.66479]
[1641444734177,12.14413377,149.34,149.27,33.17779]
[1641444735079,37.88833453,149.35,149.27,33.17779]
[1641444735080,50.0324683,149.35,149.27,33.17779]
[1641444735582,4.0,149.34,149.27,33.17779]
[1641444735780,4.0,149.34,149.27,27.66479]
[1641444735980,9.613,149.34,149.27,27.66479]
[1641444736180,9.613,149.34,149.22,64.9216]
[1641444736583,4.0,149.31,149.22,64.9216]
[1641444736781,6.216,149.31,149.25,14.19916251]
[1641444737182,4.0,149.26,149.17,67.20871998]
[1641444737383,10.096,149.26,149.17,67.20871998]
[1641444737983,6.096,149.26,149.17,56.94871998]
[1641444738387,27.66479,149.27,149.15,10.26]
[1641444739283,12.14413377,149.26,149.17,24.0]
[1641444739485,12.14413377,149.26,149.17,6.748]
[1641444739885,12.14413377,149.26,149.19,24.0]
[1641444740085,12.14413377,149.26,149.17,34.41279]
[1641444740285,12.14413377,149.26,149.18,10.69232056]
[1641444740484,12.14413377,149.26,149.18,6.69232056]
[1641444741184,16.14413377,149.26,149.17,27.66479]
[1641444741387,6.575,149.26,149.18,6.80194659]
[1641444741585,4.0,149.23,149.18,6.80194659]
[1641444741784,10.07,149.23,149.12,56.94871998]
[1641444741985,27.66479,149.22,149.12,56.94871998]
[1641444742185,27.66479,149.22,149.09,27.66479]
[1641444742388,64.9372,149.23,149.12,6.69523299]
[1641444742685,27.66479,149.24,149.15,6.69366445]
[1641444742885,27.66479,149.24,149.18,6.69254451]
[1641444743087,37.88833453,149.25,149.18,13.70254451]
[1641444743286,37.88833453,149.25,149.2,6.69142494]
[1641444743686,37.88833453,149.27,149.2,6.69142494]
[1641444744687,135.40342453,149.31,149.2,6.69142494]
[1641444744886,131.40342453,149.31,149.2,6.69142494]
[1641444745487,93.51509,149.31,149.2,6.69142494]
[1641444746087,93.51509,149.31,149.16,20.0]
[1641444746088,93.51509,149.31,149.13,56.94871998]
[1641444746292,6.69635384,149.26,149.13,56.94871998]